fUST/lending_fUST_20250618
["ID","MTS","AMOUNT","RATE_DAILY","PERIOD"]
[366428827,1750252248135,-460.0,0.00023013,6]
[366428829,1750252248145,-460.0,0.00023013,6]
[366428831,1750252248155,-460.0,0.00023013,6]
[366428833,1750252248164,-460.0,0.00023013,6]
[366428835,1750252248174,-460.0,0.00023013,6]
[366428837,1750252248184,-507.04127505,0.00023013,6]
[366428839,1750252248194,-460.0,0.00023013,6]
[366428842,1750252248208,-373.66632567,0.00023013,6]
[366428844,1750252248217,-1479.93,0.00023013,6]
[366428845,1750252248227,-357.33461993,0.00023013,6]
[366428847,1750252248239,-1494.46,0.00023013,6]
[366428850,1750252248250,-460.0,0.00023013,6]
[366428852,1750252248260,-356.10316095,0.00023013,6]
[366428854,1750252248270,-460.0,0.00023013,6]
[366428856,1750252248280,-460.0,0.00023013,6]
[366428857,1750252248290,-896.68,0.00023013,6]
[366428859,1750252248300,-460.0,0.00023013,6]
[366428862,1750252248310,-1162.77,0.00023013,6]
[366428863,1750252248320,-460.0,0.00023013,6]
[366428865,1750252248330,-460.0,0.00023013,6]
[366428868,1750252248339,-460.0,0.00023013,6]
[366428869,1750252248349,-460.0,0.00023013,6]
[366428871,1750252248359,-1027.62,0.00023013,6]
[366428874,1750252248369,-460.0,0.00023013,6]
[366428876,1750252248379,-460.0,0.00023013,6]
[366428877,1750252248389,-460.0,0.00023013,6]
[366428879,1750252248399,-460.0,0.00023013,6]
[366428880,1750252248408,-460.0,0.00023013,6]
[366428881,1750252248418,-460.0,0.00023013,6]
[366428882,1750252248428,-460.0,0.00023013,6]
[366428883,1750252248438,-460.0,0.00023013,6]
[366428884,1750252248447,-300.0,0.00023013,6]
[366428885,1750252248456,-460.0,0.00023013,6]
[366428886,1750252248466,-731.23,0.00023013,6]
[366428887,1750252248475,-460.0,0.00023013,6]
[366428888,1750252248487,-460.0,0.00023013,6]
[366428889,1750252248497,-339.06466937,0.00023013,6]
[366428890,1750252248506,-460.0,0.00023013,6]
[366428891,1750252248515,-460.0,0.00023013,6]
[366428892,1750252248524,-460.0,0.00023013,6]
[366428893,1750252248533,-460.0,0.00023013,6]
[366428894,1750252248542,-460.0,0.00023013,6]
[366428895,1750252248551,-460.0,0.00023013,6]
[366428896,1750252248560,-460.0,0.00023013,6]
[366428897,1750252248569,-460.0,0.00023013,6]
[366428898,1750252248578,-460.0,0.00023013,6]
[366428899,1750252248587,-460.0,0.00023013,6]
[366428900,1750252248597,-460.0,0.00023013,6]
[366428901,1750252248606,-460.0,0.00023013,6]
[366428902,1750252248616,-507.09,0.00023013,6]
[366428903,1750252248625,-460.0,0.00023013,6]
[366428904,1750252248635,-872.53,0.00023013,6]
[366428905,1750252248646,-460.0,0.00023013,6]
[366428906,1750252248659,-460.0,0.00023013,6]
[366428907,1750252248671,-460.0,0.00023013,6]
[366428908,1750252248681,-460.0,0.00023013,6]
[366428909,1750252248690,-535.46,0.00023013,6]
[366428910,1750252248700,-460.0,0.00023013,6]
[366428911,1750252248709,-460.0,0.00023013,6]
[366428912,1750252248718,-460.0,0.00023013,6]
[366428913,1750252248728,-460.0,0.00023013,6]
[366428914,1750252248737,-460.0,0.00023013,6]
[366428915,1750252248747,-3020.47,0.00023013,6]
[366428916,1750252248756,-460.0,0.00023013,6]
[366428917,1750252248765,-1237.72,0.00023013,6]
[366428918,1750252248775,-460.0,0.00023013,6]
[366428919,1750252248786,-1000.0,0.00023021,2]
[366428920,1750252248795,-1200.0,0.00023021,2]
[366428921,1750252248805,-1000.0,0.00023021,2]
[366428922,1750252248815,-2000.0,0.00023039,2]
[366428923,1750252248824,-1500.0,0.00023068,2]
[366428924,1750252248834,-500.0,0.00023068,2]
[366428925,1750252248844,-1005.3571264,0.00023068,2]
[366428926,1750252248853,-1500.0,0.00023068,2]
[366428927,1750252248862,-1012.34391619,0.00023068,2]
[366428928,1750252248871,-1500.0,0.00023068,2]
[366428929,1750252248880,-5178.88,0.0002314,2]
[366428930,1750252248889,-500.0,0.00023162,2]
[366428931,1750252248898,-1747.0,0.000232,3]
[366428932,1750252248907,-151.0,0.000232,3]
[366428933,1750252248916,-1747.0,0.000232,3]
[366428934,1750252248930,-151.0,0.000232,3]
[366428935,1750252248941,-153.21148241,0.000232,3]
[366428936,1750252248950,-1747.0,0.000232,3]
[366428937,1750252248959,-1521.50742211,0.0002321,8]
[366428938,1750252248969,-208.8,0.00023237,6]
[366428939,1750252248979,-1747.0,0.0002325,3]
[366428940,1750252248989,-1747.0,0.0002325,3]
[366428941,1750252248999,-1747.0,0.0002325,3]
[366428942,1750252249009,-1747.0,0.0002325,3]
[366428943,1750252249019,-1747.0,0.0002325,3]
[366428944,1750252249028,-1747.0,0.0002325,3]
[366428945,1750252249038,-426.71693277,0.0002325,3]
[366428946,1750252249048,-1747.0,0.0002325,3]
[366428947,1750252249057,-292.28463317,0.0002325,3]
[366428948,1750252249067,-317.0,0.0002325,3]
[366428949,1750252249076,-317.0,0.0002325,3]
[366428950,1750252249085,-317.0,0.0002325,3]
[366428951,1750252249095,-317.0,0.0002325,3]
[366428952,1750252249104,-317.0,0.0002325,3]
[366428953,1750252249114,-317.0,0.0002325,3]
[366428954,1750252249123,-317.0,0.0002325,3]
[366428955,1750252249134,-317.0,0.0002325,3]
[366428956,1750252249143,-324.34362012,0.0002325,3]
[366428957,1750252249152,-223.0315306,0.00023262,2]
[366428958,1750252249162,-5000.0,0.00023264,2]
[366428959,1750252249172,-500.0,0.00023276,2]
[366428960,1750252249182,-458.0,0.00023287,6]
[366428961,1750252249191,-460.0,0.00023287,6]
[366428962,1750252249200,-460.0,0.00023287,6]
[366428963,1750252249211,-460.0,0.00023287,2]
[366428964,1750252249220,-460.0,0.00023287,6]
[366428965,1750252249230,-460.0,0.00023287,6]
[366428966,1750252249240,-460.0,0.00023287,6]
[366428967,1750252249250,-460.0,0.00023287,6]
[366428968,1750252249259,-460.0,0.00023287,6]
[366428969,1750252249268,-460.0,0.00023287,6]
[366428970,1750252249277,-460.0,0.00023287,6]
[366428971,1750252249286,-191.30658607,0.00023287,6]
[366428972,1750252249296,-460.0,0.00023287,6]
[366428973,1750252249305,-460.0,0.00023287,6]
[366428974,1750252249314,-460.0,0.00023287,6]
[366428975,1750252249323,-460.0,0.00023287,6]
[366428976,1750252249332,-460.0,0.00023287,6]
[366428977,1750252249342,-460.0,0.00023287,6]
[366428978,1750252249351,-460.0,0.00023287,6]
[366428979,1750252249360,-460.0,0.00023287,6]
[366428980,1750252249369,-460.0,0.00023287,6]
[366428981,1750252249379,-460.0,0.00023287,6]
[366428982,1750252249388,-460.0,0.00023287,6]
[366428983,1750252249398,-460.0,0.00023287,6]
[366428984,1750252249407,-460.0,0.00023287,6]
[366428985,1750252249416,-575.64708101,0.00023287,6]
[366428986,1750252249425,-460.0,0.00023287,6]
[366428987,1750252249434,-460.0,0.00023287,6]
[366428988,1750252249444,-460.0,0.00023287,6]
[366428989,1750252249453,-460.0,0.00023287,6]
[366428990,1750252249463,-497.04,0.00023287,6]
[366428991,1750252249472,-460.0,0.00023287,6]
[366428992,1750252249482,-1212.23,0.00023287,6]
[366428993,1750252249492,-460.0,0.00023287,6]
[366428994,1750252249501,-460.0,0.00023287,6]
[366428995,1750252249511,-460.0,0.00023287,6]
[366428996,1750252249520,-460.0,0.00023287,6]
[366428997,1750252249529,-460.0,0.00023287,6]
[366428998,1750252249538,-460.0,0.00023287,6]
[366428999,1750252249547,-1479.93,0.00023287,6]
[366429000,1750252249556,-460.0,0.00023287,6]
[366429001,1750252249566,-1494.46,0.00023287,6]
[366429002,1750252249575,-460.0,0.00023287,6]
[366429003,1750252249584,-460.0,0.00023287,6]
[366429004,1750252249593,-896.68,0.00023287,6]
[366429005,1750252249603,-460.0,0.00023287,6]
[366429006,1750252249612,-1162.77,0.00023287,6]
[366429007,1750252249621,-460.0,0.00023287,6]
[366429008,1750252249630,-460.0,0.00023287,6]
[366429009,1750252249730,-460.0,0.00023287,6]
[366429010,1750252249740,-460.0,0.00023287,6]
[366429011,1750252249749,-1027.62,0.00023287,6]
[366429013,1750252249759,-460.0,0.00023287,6]
[366429015,1750252249768,-460.0,0.00023287,6]
[366429017,1750252249777,-460.0,0.00023287,6]
[366429019,1750252249786,-408.52558843,0.00023287,6]
[366429021,1750252249795,-460.0,0.00023287,6]
[366429023,1750252249804,-460.0,0.00023287,6]
[366429025,1750252249814,-460.0,0.00023287,6]
[366429027,1750252249823,-460.0,0.00023287,6]
[366429028,1750252249832,-460.0,0.00023287,6]
[366429030,1750252249841,-731.23,0.00023287,6]
[366429032,1750252249850,-460.0,0.00023287,6]
[366429034,1750252249859,-460.0,0.00023287,6]
[366429036,1750252249869,-460.0,0.00023287,6]
[366429038,1750252249878,-460.0,0.00023287,6]
[366429040,1750252249887,-460.0,0.00023287,6]
[366429042,1750252249897,-186.67,0.00023287,6]
[366429044,1750252249907,-460.0,0.00023287,6]
[366429046,1750252249917,-460.0,0.00023287,6]
[366429048,1750252249927,-460.0,0.00023287,6]
[366429050,1750252249937,-460.0,0.00023287,6]
[366429052,1750252249946,-460.0,0.00023287,6]
[366429053,1750252249955,-460.0,0.00023287,6]
[366429055,1750252249964,-460.0,0.00023287,6]
[366429057,1750252249974,-460.0,0.00023287,6]
[366429060,1750252249985,-507.09,0.00023287,6]
[366429062,1750252249995,-460.0,0.00023287,6]
[366429063,1750252250005,-872.53,0.00023287,6]
[366429065,1750252250014,-460.0,0.00023287,6]
[366429067,1750252250023,-460.0,0.00023287,6]
[366429069,1750252250032,-460.0,0.00023287,6]
[366429071,1750252250041,-460.0,0.00023287,6]
[366429073,1750252250051,-535.46,0.00023287,6]
[366429075,1750252250061,-230.0,0.00023287,6]
[366429077,1750252250070,-460.0,0.00023287,6]
[366429079,1750252250080,-460.0,0.00023287,6]
[366429081,1750252250089,-460.0,0.00023287,6]
[366429083,1750252250099,-460.0,0.00023287,6]
[366429085,1750252250108,-3020.47,0.00023287,6]
[366429087,1750252250118,-396.58087986,0.00023287,6]
[366429089,1750252250127,-1237.72,0.00023287,6]
[366429091,1750252250136,-460.0,0.00023287,6]
[366429093,1750252250145,-500.0,0.00023395,2]
[366429095,1750252250155,-151.0,0.000234,10]
[366429097,1750252250164,-1521.50742211,0.00023417,9]
[366429099,1750252250173,-501.23081117,0.00023433,2]
[366429101,1750252250182,-500.0,0.00023445,2]
[366429103,1750252250191,-208.8,0.00023475,6]
[366429105,1750252250200,-500.0,0.00023495,2]
[366429107,1750252250209,-915.39,0.000235,4]
[366429109,1750252250218,-500.0,0.000235,2]
[366429111,1750252250227,-151.0,0.000235,6]
[366429113,1750252250237,-500.0,0.00023512,2]
[366429115,1750252250246,-280.0,0.00023561,6]
[366429117,1750252250255,-200.0,0.00023561,6]
[366429119,1750252250264,-200.0,0.00023561,6]
[366429121,1750252250273,-200.0,0.00023561,6]
[366429123,1750252250284,-200.0,0.00023561,6]
[366429125,1750252250293,-200.0,0.00023561,6]
[366429127,1750252250302,-200.0,0.00023561,6]
[366429129,1750252250312,-201.55034724,0.00023561,6]
[366429131,1750252250321,-460.0,0.00023561,6]
[366429132,1750252250330,-460.0,0.00023561,2]
[366429134,1750252250339,-460.0,0.00023561,6]
[366429136,1750252250349,-460.0,0.00023561,6]
[366429138,1750252250358,-460.0,0.00023561,6]
[366429140,1750252250367,-460.0,0.00023561,6]
[366429142,1750252250376,-460.0,0.00023561,6]
[366429144,1750252250385,-460.0,0.00023561,6]
[366429146,1750252250394,-460.0,0.00023561,6]
[366429148,1750252250403,-460.0,0.00023561,6]
[366429149,1750252250413,-460.0,0.00023561,6]
[366429150,1750252250422,-460.0,0.00023561,6]
[366429151,1750252250431,-460.0,0.00023561,6]
[366429152,1750252250440,-588.72491501,0.00023561,6]
[366429153,1750252250450,-460.0,0.00023561,6]
[366429154,1750252250460,-460.0,0.00023561,6]
[366429155,1750252250469,-460.0,0.00023561,6]
[366429156,1750252250478,-182.65634559,0.00023561,6]
[366429157,1750252250487,-460.0,0.00023561,6]
[366429158,1750252250496,-460.0,0.00023561,6]
[366429159,1750252250506,-460.0,0.00023561,6]
[366429160,1750252250515,-460.0,0.00023561,6]
[366429161,1750252250524,-460.0,0.00023561,6]
[366429162,1750252250533,-280.0,0.00023561,6]
[366429163,1750252250542,-460.0,0.00023561,6]
[366429164,1750252250551,-497.04,0.00023561,6]
[366429165,1750252250561,-445.93033951,0.00023561,6]
[366429166,1750252250570,-1212.23,0.00023561,6]
[366429167,1750252250580,-460.0,0.00023561,6]
[366429168,1750252250589,-460.0,0.00023561,6]
[366429169,1750252250599,-460.0,0.00023561,6]
[366429170,1750252250608,-460.0,0.00023561,6]
[366429171,1750252250617,-460.0,0.00023561,6]
[366429172,1750252250626,-460.0,0.00023561,6]
[366429173,1750252250635,-1479.93,0.00023561,6]
[366429174,1750252250644,-1494.46,0.00023561,6]
[366429175,1750252250654,-460.0,0.00023561,6]
[366429176,1750252250663,-460.0,0.00023561,6]
[366429177,1750252250673,-460.0,0.00023561,6]
[366429178,1750252250682,-896.68,0.00023561,6]
[366429179,1750252250694,-460.0,0.00023561,6]
[366429180,1750252250703,-1162.77,0.00023561,6]
[366429181,1750252250712,-460.0,0.00023561,6]
[366429182,1750252250721,-460.0,0.00023561,6]
[366429183,1750252250731,-460.0,0.00023561,6]
[366429184,1750252250740,-460.0,0.00023561,6]
[366429185,1750252250750,-1027.62,0.00023561,6]
[366429186,1750252250758,-460.0,0.00023561,6]
[366429187,1750252250768,-460.0,0.00023561,6]
[366429188,1750252250777,-180.0,0.00023561,6]
[366429189,1750252250787,-270.0,0.00023561,6]
[366429190,1750252250796,-460.0,0.00023561,6]
[366429191,1750252250805,-460.0,0.00023561,6]
[366429192,1750252250814,-370.58,0.00023561,6]
[366429193,1750252250824,-460.0,0.00023561,6]
[366429194,1750252250833,-731.23,0.00023561,6]
[366429195,1750252250843,-460.0,0.00023561,6]
[366429196,1750252250852,-460.0,0.00023561,6]
[366429197,1750252250862,-460.0,0.00023561,6]
[366429198,1750252250871,-460.0,0.00023561,6]
[366429199,1750252250880,-460.0,0.00023561,6]
[366429200,1750252250889,-460.0,0.00023561,6]
[366429201,1750252250898,-460.0,0.00023561,6]
[366429202,1750252250907,-460.0,0.00023561,6]
[366429203,1750252250917,-460.0,0.00023561,6]
[366429204,1750252250929,-460.0,0.00023561,6]
[366429205,1750252250938,-290.0,0.00023561,6]
[366429206,1750252250947,-460.0,0.00023561,6]
[366429207,1750252250956,-460.0,0.00023561,6]
[366429208,1750252250966,-507.09,0.00023561,6]
[366429209,1750252250975,-460.0,0.00023561,6]
[366429210,1750252250984,-872.53,0.00023561,6]
[366429211,1750252250993,-460.0,0.00023561,6]
[366429212,1750252251003,-460.0,0.00023561,6]
[366429213,1750252251014,-460.0,0.00023561,6]
[366429214,1750252251023,-460.0,0.00023561,6]
[366429215,1750252251032,-535.46,0.00023561,6]
[366429216,1750252251041,-460.0,0.00023561,6]
[366429217,1750252251050,-460.0,0.00023561,6]
[366429218,1750252251059,-460.0,0.00023561,6]
[366429219,1750252251068,-460.0,0.00023561,6]
[366429220,1750252251078,-3020.47,0.00023561,6]
[366429221,1750252251087,-1237.72,0.00023561,6]
[366429222,1750252251095,-460.0,0.00023561,6]
[366429223,1750252251104,-1500.0,0.00023568,2]
[366429224,1750252251113,-1800.0,0.00023568,2]
[366429225,1750252251122,-1500.0,0.00023568,2]
[366429226,1750252251130,-500.0,0.00023587,2]
[366429227,1750252251139,-200.0,0.00023596,2]
[366429228,1750252251148,-151.0,0.000236,7]
[366429229,1750252251157,-3000.0,0.000236,2]
[366429230,1750252251166,-3000.0,0.0002361,2]
[366429231,1750252251174,-500.0,0.00023616,2]
[366429232,1750252251183,-466.74674808,0.00023616,2]
[366429233,1750252251192,-1997.29901224,0.00023616,2]
[366429234,1750252251201,-3000.0,0.0002362,2]
[366429235,1750252251210,-1521.50742211,0.00023624,9]
[366429236,1750252251219,-3000.0,0.0002363,2]
[366429237,1750252251228,-3000.0,0.0002364,2]
[366429238,1750252251237,-5834.669709,0.0002365,2]
[366429239,1750252251246,-500.0,0.0002371,2]
[366429240,1750252251255,-208.8,0.00023712,6]
[366429241,1750252251264,-500.0,0.00023712,2]
[366429242,1750252251272,-500.0,0.00023778,2]
[366429243,1750252251282,-220102.3417638,0.0002378,5]
[366429244,1750252251291,-313.05,0.000238,7]
[366429245,1750252251300,-835.98428123,0.000238,3]
[366429246,1750252251309,-843.90592518,0.000238,3]
[366429247,1750252251320,-151.0,0.000238,7]
[366429249,1750252251329,-151.0,0.000238,8]
[366429250,1750252251338,-315.48910325,0.000238,7]
[366429251,1750252251347,-500.0,0.00023804,2]
[366429253,1750252251358,-5000.0,0.00023824,2]
[366429255,1750252251368,-1521.50742211,0.00023831,10]
[366429257,1750252251378,-460.0,0.00023835,6]
[366429259,1750252251387,-460.0,0.00023835,2]
[366429261,1750252251396,-460.0,0.00023835,6]
[366429263,1750252251405,-460.0,0.00023835,6]
[366429265,1750252251414,-460.0,0.00023835,6]
[366429267,1750252251424,-460.0,0.00023835,6]
[366429269,1750252251433,-460.0,0.00023835,6]
[366429271,1750252251443,-460.0,0.00023835,6]
[366429273,1750252251452,-355.43150531,0.00023835,6]
[366429275,1750252251462,-272.68339239,0.00023835,6]
[366429277,1750252251471,-460.0,0.00023835,6]
[366429279,1750252251481,-460.0,0.00023835,6]
[366429281,1750252251491,-460.0,0.00023835,6]
[366429283,1750252251501,-460.0,0.00023835,6]
[366429285,1750252251510,-460.0,0.00023835,6]
[366429287,1750252251520,-460.0,0.00023835,6]
[366429289,1750252251529,-460.0,0.00023835,6]
[366429291,1750252251539,-460.0,0.00023835,6]
[366429293,1750252251549,-460.0,0.00023835,6]
[366429295,1750252251558,-460.0,0.00023835,6]
[366429297,1750252251568,-460.0,0.00023835,6]
[366429299,1750252251578,-460.0,0.00023835,6]
[366429301,1750252251587,-497.04,0.00023835,6]
[366429303,1750252251596,-1212.23,0.00023835,6]
[366429305,1750252251606,-460.0,0.00023835,6]
[366429307,1750252251615,-260.0,0.00023835,6]
[366429309,1750252251625,-460.0,0.00023835,6]
[366429319,1750252251706,-460.0,0.00023835,6]
[366429321,1750252251726,-460.0,0.00023835,6]
[366429323,1750252251736,-460.0,0.00023835,6]
[366429325,1750252251745,-1479.93,0.00023835,6]
[366429327,1750252251755,-460.0,0.00023835,6]
[366429329,1750252251764,-1494.46,0.00023835,6]
[366429331,1750252251776,-460.0,0.00023835,6]
[366429333,1750252251786,-460.0,0.00023835,6]
[366429335,1750252251796,-896.68,0.00023835,6]
[366429337,1750252251806,-460.0,0.00023835,6]
[366429339,1750252251815,-1162.77,0.00023835,6]
[366429341,1750252251825,-460.0,0.00023835,6]
[366429343,1750252251835,-460.0,0.00023835,6]
[366429345,1750252251844,-460.0,0.00023835,6]
[366429347,1750252251853,-460.0,0.00023835,6]
[366429349,1750252251863,-1027.62,0.00023835,6]
[366429351,1750252251872,-460.0,0.00023835,6]
[366429353,1750252251881,-460.0,0.00023835,6]
[366429355,1750252251891,-460.0,0.00023835,6]
[366429357,1750252251901,-460.0,0.00023835,6]
[366429359,1750252251910,-566.32,0.00023835,6]
[366429361,1750252251921,-731.23,0.00023835,6]
[366429363,1750252251932,-460.0,0.00023835,6]
[366429365,1750252251941,-460.0,0.00023835,6]
[366429367,1750252251950,-460.0,0.00023835,6]
[366429369,1750252251960,-460.0,0.00023835,6]
[366429371,1750252251970,-460.0,0.00023835,6]
[366429373,1750252251981,-460.0,0.00023835,6]
[366429375,1750252251991,-460.0,0.00023835,6]
[366429377,1750252252003,-460.0,0.00023835,6]
[366429379,1750252252014,-381.44,0.00023835,6]
[366429381,1750252252024,-460.0,0.00023835,6]
[366429383,1750252252033,-200.0,0.00023835,6]
[366429385,1750252252043,-507.09,0.00023835,6]
[366429387,1750252252052,-460.0,0.00023835,6]
[366429389,1750252252061,-872.53,0.00023835,6]
[366429391,1750252252070,-460.0,0.00023835,6]
[366429392,1750252252079,-460.0,0.00023835,6]
[366429394,1750252252089,-460.0,0.00023835,6]
[366429396,1750252252098,-460.0,0.00023835,6]
[366429398,1750252252107,-535.46,0.00023835,6]
[366429400,1750252252116,-460.0,0.00023835,6]
[366429402,1750252252125,-460.0,0.00023835,6]
[366429404,1750252252134,-460.0,0.00023835,6]
[366429406,1750252252144,-460.0,0.00023835,6]
[366429408,1750252252154,-3020.47,0.00023835,6]
[366429410,1750252252164,-1237.72,0.00023835,6]
[366429412,1750252252173,-460.0,0.00023835,6]
[366429414,1750252252183,-160.0,0.000239,3]
[366429416,1750252252192,-160.0,0.000239,3]
[366429418,1750252252202,-1551.1,0.000239,7]
[366429420,1750252252212,-1684.58613887,0.000239,2]
[366429422,1750252252221,-600.0,0.00023904,2]
[366429424,1750252252230,-500.0,0.00023945,2]
[366429426,1750252252239,-208.8,0.0002395,7]
[366429428,1750252252249,-500.0,0.0002395,2]
[366429430,1750252252258,-500.0,0.00023954,2]
[366429432,1750252252268,-823.0,0.00023967,2]
[366429434,1750252252277,-2000.0,0.00023972,7]
[366429436,1750252252286,-2000.0,0.00023972,7]
[366429438,1750252252295,-1031.86383513,0.00023972,7]
[366429440,1750252252305,-150.0,0.00023973,2]
[366429442,1750252252315,-1303497.63880322,0.00024,7]
[366429444,1750252252325,-30093.0,0.00024,2]
[366429446,1750252252334,-94632.76,0.00024,2]
[366429448,1750252252343,-10029.25206221,0.00024,2]
[366429450,1750252252353,-157.999999,0.00024,2]
[366429452,1750252252363,-500.0,0.00024,2]
[366429454,1750252252372,-152.0,0.00024,2]
[366429456,1750252252382,-4035.0,0.00024,2]
[366429458,1750252252391,-160.0,0.00024,7]
[366429460,1750252252401,-37488.91484567,0.00024,2]
[366429471,1750252252499,-7014.84238529,0.00024,2]
[366429474,1750252252511,-293.06294558,0.00024,2]
[366429505,1750252252810,-154.97707335,0.00018789,2]
[366429507,1750252252819,-500.0,0.00018789,2]
[366429509,1750252252829,-394.64668023,0.00018789,2]
[366429511,1750252252838,-500.0,0.00018789,2]
[366429513,1750252252848,-500.0,0.00018789,2]
[366429515,1750252252857,-500.0,0.00018789,2]
[366429517,1750252252866,-500.0,0.00018789,2]
[366429518,1750252252876,-500.0,0.00018789,2]
[366429519,1750252252886,-500.0,0.00018789,2]
[366429520,1750252252895,-500.0,0.00018789,2]
[366429521,1750252252904,-500.0,0.00018789,2]
[366429522,1750252252913,-500.0,0.00018789,2]
[366429523,1750252252926,-500.0,0.00018789,2]
[366429524,1750252252940,-500.0,0.00018789,2]
[366429525,1750252252950,-500.0,0.00018789,2]
[366429526,1750252252959,-626.56203118,0.00018789,2]
[366429527,1750252252970,-160.37194893,0.00020556,2]
[366429528,1750252252979,-160.0,0.00020674,2]
[366429529,1750252252988,-436.7071302,0.00021917,6]
[366429530,1750252252998,-440.0,0.00021917,6]
[366429531,1750252253008,-154.483303,0.00021918,2]
[366429532,1750252253017,-160.0,0.00022044,2]
[366429533,1750252253027,-460.0,0.00022465,6]
[366429534,1750252253035,-460.0,0.00022739,6]
[366429535,1750252253045,-460.0,0.00023013,6]
[366429536,1750252253054,-460.0,0.00023287,6]
[366429537,1750252253063,-460.0,0.00023561,6]
[366429538,1750252253072,-460.0,0.00023835,6]
[366429539,1750252253082,-11740.71743721,0.00024,2]
[366429540,1750252253091,-835.98428123,0.00024,7]
[366429541,1750252253101,-65221.76,0.00024,7]
[366429542,1750252253110,-375180.74654557,0.00024,30]
[366429543,1750252253119,-1332.56,0.00024,2]
[366429544,1750252253128,-163.92,0.00024,2]
[366429545,1750252253138,-163.92,0.00024,2]
[366429546,1750252253147,-163.92,0.00024,2]
[366429547,1750252253156,-163.95574605,0.00024,2]
[366429548,1750252253167,-3000.0,0.00024,2]
[366429549,1750252253176,-424.70586748,0.00024,7]
[366429550,1750252253186,-229.98435572,0.00024,7]
[366429551,1750252253195,-315.48910325,0.00024,30]
[366429552,1750252253205,-315.48910325,0.00024,3]
[366429553,1750252253215,-315.48910325,0.00024,7]
[366429554,1750252253225,-3000.0,0.0002401,2]
[366429555,1750252253234,-3000.0,0.0002402,2]
[366429556,1750252253243,-3000.0,0.0002403,2]
[366429557,1750252253253,-1684.58613879,0.00024035,2]
[366429558,1750252253262,-1521.50742211,0.00024038,10]
[366429559,1750252253271,-3000.0,0.0002404,2]
[366429560,1750252253280,-3000.0,0.0002405,2]
[366429561,1750252253289,-3000.0,0.0002406,2]
[366429562,1750252253298,-3000.0,0.0002407,2]
[366429563,1750252253308,-3000.0,0.0002408,2]
[366429564,1750252253317,-3000.0,0.0002409,2]
[366429565,1750252253327,-500.0,0.00024096,2]
[366429566,1750252253336,-3000.0,0.000241,2]
[366429567,1750252253345,-275.52735968,0.00024109,6]
[366429568,1750252253355,-602.03,0.00024109,2]
[366429569,1750252253364,-460.0,0.00024109,6]
[366429570,1750252253373,-432.39868925,0.00024109,6]
[366429571,1750252253382,-460.0,0.00024109,6]
[366429572,1750252253391,-460.0,0.00024109,6]
[366429573,1750252253401,-460.0,0.00024109,6]
[366429574,1750252253410,-460.0,0.00024109,6]
[366429575,1750252253420,-460.0,0.00024109,6]
[366429576,1750252253510,-460.0,0.00024109,6]